[Event "Titled Tuesday Blitz August 15 Early 2023"]
[White "Grigoryan, Meri"]
[Black "Cheer_Down"]
[WhiteFideId "13300571"]
[WhiteElo "2121"]
[BlackElo "2333"]
[Result "0-1"]
[Round "11"]
[TimeControl "180+1"]
[Date "2023.08.15"]
[WhiteClock "0:00:04"]
[BlackClock "0:00:43"]
[Board "148"]

1. d4 {[%clk 0:03:00]}  Nf6 {[%clk 0:02:56]} 2. Nf3 {[%clk 0:03:00]}  d5 {[%clk 0:02:55]} 3. Bf4 {[%clk 0:02:59]}  e6 {[%clk 0:02:54]} 4. c3 {[%clk 0:02:58]}  c5 {[%clk 0:02:55]} 5. e3 {[%clk 0:02:58]}  Nc6 {[%clk 0:02:55]} 6. Bb5 {[%clk 0:02:57]}  Qb6 {[%clk 0:02:49]} 7. Bxc6+ {[%clk 0:02:47]}  bxc6 {[%clk 0:02:49]} 8. Qc2 {[%clk 0:02:42]}  Ba6 {[%clk 0:02:48]} 9. Nbd2 {[%clk 0:02:34]}  cxd4 {[%clk 0:02:45]} 10. exd4 {[%clk 0:02:34]}  c5 {[%clk 0:02:45]} 11. Qa4+ {[%clk 0:02:04]}  Bb5 {[%clk 0:02:45]} 12. Qb3 {[%clk 0:01:55]}  Bd3 {[%clk 0:02:44]} 13. Ne5 {[%clk 0:01:34]}  Ba6 {[%clk 0:02:33]} 14. Qa4+ {[%clk 0:01:30]}  Bb5 {[%clk 0:02:33]} 15. Qb3 {[%clk 0:01:29]}  Be7 {[%clk 0:02:30]} 16. a4 {[%clk 0:01:10]}  Bd7 {[%clk 0:02:29]} 17. O-O {[%clk 0:00:54]}  O-O {[%clk 0:02:23]} 18. Nxd7 {[%clk 0:00:43]}  Nxd7 {[%clk 0:02:22]} 19. a5 {[%clk 0:00:42]}  Qa6 {[%clk 0:02:17]} 20. Qa4 {[%clk 0:00:38]}  Nf6 {[%clk 0:02:04]} 21. b4 {[%clk 0:00:37]}  cxb4 {[%clk 0:02:03]} 22. cxb4 {[%clk 0:00:37]}  Qd3 {[%clk 0:02:02]} 23. Nf3 {[%clk 0:00:26]}  a6 {[%clk 0:01:56]} 24. Rfd1 {[%clk 0:00:26]}  Qe4 {[%clk 0:01:55]} 25. Bg3 {[%clk 0:00:24]}  Nh5 {[%clk 0:01:50]} 26. Bc7 {[%clk 0:00:24]}  Rfc8 {[%clk 0:01:48]} 27. Qd7 {[%clk 0:00:23]}  Bxb4 {[%clk 0:01:45]} 28. Ne5 {[%clk 0:00:20]}  Rf8 {[%clk 0:01:40]} 29. Rab1 {[%clk 0:00:19]}  Nf4 {[%clk 0:01:34]} 30. f3 {[%clk 0:00:15]}  Qe3+ {[%clk 0:01:33]} 31. Kh1 {[%clk 0:00:15]}  Bc3 {[%clk 0:01:27]} 32. Nc6 {[%clk 0:00:12]}  Qf2 {[%clk 0:01:15]} 33. Bxf4 {[%clk 0:00:12]}  h6 {[%clk 0:01:04]} 34. Bg3 {[%clk 0:00:12]}  Qa2 {[%clk 0:01:03]} 35. Rb7 {[%clk 0:00:11]}  Qc2 {[%clk 0:00:59]} 36. Rf1 {[%clk 0:00:10]}  Qd3 {[%clk 0:00:56]} 37. Ne7+ {[%clk 0:00:10]}  Kh8 {[%clk 0:00:55]} 38. Rfb1 {[%clk 0:00:09]}  Bxd4 {[%clk 0:00:50]} 39. Be5 {[%clk 0:00:08]}  Bxe5 {[%clk 0:00:48]} 40. Nc6 {[%clk 0:00:07]}  Bf6 {[%clk 0:00:47]} 41. Ne7 {[%clk 0:00:07]}  Bxe7 {[%clk 0:00:45]} 42. Qxe7 {[%clk 0:00:07]}  Kg8 {[%clk 0:00:45]} 43. h3 {[%clk 0:00:07]}  Qd2 {[%clk 0:00:44]} 44. R1b2 {[%clk 0:00:07]}  Qxa5 {[%clk 0:00:43]} 45. Rd7 {[%clk 0:00:07]}  Qe1+ {[%clk 0:00:42]} 46. Kh2 {[%clk 0:00:04]}  Qe5+ {[%clk 0:00:43]} 0-1


[Site "https://www.chess.com"]

[Event "Titled Tuesday Blitz August 15 Early 2023"]
[White "Winkels, Marcel"]
[Black "rikchessmx"]
[WhiteFideId "1003887"]
[WhiteElo "2078"]
[BlackElo "2314"]
[Result "0-1"]
[Round "11"]
[TimeControl "180+1"]
[Date "2023.08.15"]
[WhiteClock "0:00:00"]
[BlackClock "0:00:47"]
[Board "149"]

1. e4 {[%clk 0:03:00]}  e5 {[%clk 0:02:37]} 2. Nf3 {[%clk 0:02:59]}  Nc6 {[%clk 0:02:37]} 3. Bb5 {[%clk 0:02:58]}  Bc5 {[%clk 0:02:36]} 4. O-O {[%clk 0:02:57]}  Qf6 {[%clk 0:02:17]} 5. Nc3 {[%clk 0:02:47]}  Nge7 {[%clk 0:02:13]} 6. d3 {[%clk 0:02:39]}  h6 {[%clk 0:02:13]} 7. Be3 {[%clk 0:02:36]}  Bb6 {[%clk 0:02:12]} 8. Re1 {[%clk 0:02:26]}  O-O {[%clk 0:02:11]} 9. Nd5 {[%clk 0:02:25]}  Nxd5 {[%clk 0:02:10]} 10. exd5 {[%clk 0:02:25]}  Ne7 {[%clk 0:02:07]} 11. Bxb6 {[%clk 0:02:24]}  axb6 {[%clk 0:02:07]} 12. Nxe5 {[%clk 0:02:06]}  d6 {[%clk 0:02:06]} 13. Nd7 {[%clk 0:01:45]}  Bxd7 {[%clk 0:02:04]} 14. Bxd7 {[%clk 0:01:44]}  Nxd5 {[%clk 0:02:05]} 15. Bg4 {[%clk 0:01:34]}  Qxb2 {[%clk 0:02:00]} 16. Bf3 {[%clk 0:01:33]}  Nc3 {[%clk 0:02:00]} 17. Qd2 {[%clk 0:01:32]}  d5 {[%clk 0:01:56]} 18. a4 {[%clk 0:01:12]}  c6 {[%clk 0:01:54]} 19. h3 {[%clk 0:00:55]}  Rxa4 {[%clk 0:01:50]} 20. Rxa4 {[%clk 0:00:54]}  Nxa4 {[%clk 0:01:50]} 21. Re7 {[%clk 0:00:53]}  Nc5 {[%clk 0:01:23]} 22. Bh5 {[%clk 0:00:48]}  Qa1+ {[%clk 0:01:16]} 23. Kh2 {[%clk 0:00:45]}  Qf6 {[%clk 0:01:16]} 24. Re3 {[%clk 0:00:32]}  Qf4+ {[%clk 0:01:05]} 25. Kg1 {[%clk 0:00:30]}  d4 {[%clk 0:01:01]} 26. Re2 {[%clk 0:00:24]}  Qxd2 {[%clk 0:01:00]} 27. Rxd2 {[%clk 0:00:25]}  Re8 {[%clk 0:01:01]} 28. Kf1 {[%clk 0:00:22]}  b5 {[%clk 0:00:56]} 29. Bg4 {[%clk 0:00:21]}  b4 {[%clk 0:00:54]} 30. Re2 {[%clk 0:00:21]}  Rxe2 {[%clk 0:00:53]} 31. Kxe2 {[%clk 0:00:21]}  g6 {[%clk 0:00:53]} 32. Bc8 {[%clk 0:00:18]}  Kf8 {[%clk 0:00:52]} 33. Kd2 {[%clk 0:00:17]}  Ke7 {[%clk 0:00:52]} 34. Kc1 {[%clk 0:00:14]}  f5 {[%clk 0:00:50]} 35. g4 {[%clk 0:00:12]}  Kd8 {[%clk 0:00:50]} 36. gxf5 {[%clk 0:00:07]}  Kxc8 {[%clk 0:00:49]} 37. fxg6 {[%clk 0:00:07]}  Ne6 {[%clk 0:00:49]} 38. Kb2 {[%clk 0:00:05]}  Kd7 {[%clk 0:00:49]} 39. Kb3 {[%clk 0:00:05]}  c5 {[%clk 0:00:48]} 40. Kc4 {[%clk 0:00:05]}  Kc6 {[%clk 0:00:48]} 41. f4 {[%clk 0:00:03]}  b5+ {[%clk 0:00:48]} 42. Kb3 {[%clk 0:00:02]}  Ng7 {[%clk 0:00:48]} 43. h4 {[%clk 0:00:01]}  Kd5 {[%clk 0:00:47]} 44. Kb2 {[%clk 0:00:00]}  Ke6 {[%clk 0:00:47]} 0-1


[Site "https://www.chess.com"]

[Event "Titled Tuesday Blitz August 15 Early 2023"]
[White "campochess"]
[Black "Vargas, Mauricio"]
[BlackFideId "4404572"]
[WhiteElo "2153"]
[BlackElo "1888"]
[Result "1-0"]
[Round "11"]
[TimeControl "180+1"]
[Date "2023.08.15"]
[WhiteClock "0:01:16"]
[BlackClock "0:00:00"]
[Board "152"]

1. d4 {[%clk 0:02:59]}  d5 {[%clk 0:02:54]} 2. Bg5 {[%clk 0:02:59]}  Nf6 {[%clk 0:02:51]} 3. e3 {[%clk 0:02:58]}  e6 {[%clk 0:02:51]} 4. Nd2 {[%clk 0:02:57]}  Bd6 {[%clk 0:02:48]} 5. Ngf3 {[%clk 0:02:55]}  c6 {[%clk 0:02:42]} 6. Bd3 {[%clk 0:02:54]}  b6 {[%clk 0:02:31]} 7. O-O {[%clk 0:02:50]}  Bb7 {[%clk 0:02:31]} 8. e4 {[%clk 0:02:49]}  dxe4 {[%clk 0:02:30]} 9. Bxf6 {[%clk 0:02:48]}  Qxf6 {[%clk 0:02:26]} 10. Nxe4 {[%clk 0:02:47]}  Qe7 {[%clk 0:02:22]} 11. Nxd6+ {[%clk 0:02:47]}  Qxd6 {[%clk 0:02:22]} 12. c3 {[%clk 0:02:46]}  Nd7 {[%clk 0:02:21]} 13. Re1 {[%clk 0:02:46]}  O-O-O {[%clk 0:02:17]} 14. a4 {[%clk 0:02:43]}  a6 {[%clk 0:02:14]} 15. b4 {[%clk 0:02:40]}  Kb8 {[%clk 0:01:52]} 16. Qe2 {[%clk 0:02:40]}  Ka7 {[%clk 0:01:51]} 17. a5 {[%clk 0:02:26]}  b5 {[%clk 0:01:47]} 18. Ng5 {[%clk 0:02:25]}  Rdf8 {[%clk 0:01:38]} 19. Ne4 {[%clk 0:02:24]}  Qc7 {[%clk 0:01:17]} 20. c4 {[%clk 0:02:01]}  f6 {[%clk 0:01:06]} 21. Rec1 {[%clk 0:01:57]}  Qb8 {[%clk 0:01:02]} 22. Nc3 {[%clk 0:01:40]}  e5 {[%clk 0:00:59]} 23. d5 {[%clk 0:01:40]}  cxd5 {[%clk 0:00:52]} 24. cxb5 {[%clk 0:01:40]}  e4 {[%clk 0:00:40]} 25. b6+ {[%clk 0:01:38]}  Ka8 {[%clk 0:00:37]} 26. Bxa6 {[%clk 0:01:38]}  f5 {[%clk 0:00:24]} 27. Bb5 {[%clk 0:01:36]}  Ne5 {[%clk 0:00:21]} 28. a6 {[%clk 0:01:35]}  Bc6 {[%clk 0:00:20]} 29. b7+ {[%clk 0:01:23]}  Bxb7 {[%clk 0:00:14]} 30. axb7+ {[%clk 0:01:22]}  Kxb7 {[%clk 0:00:14]} 31. Nxd5 {[%clk 0:01:18]}  Rc8 {[%clk 0:00:00]} 32. Qe3 {[%clk 0:01:16]} 1-0


[Site "https://www.chess.com"]

[Event "Titled Tuesday Blitz August 15 Early 2023"]
[White "Feliz Dotel, Dewar Bienvenido"]
[Black "Zepeda Berlanga, Jan Enrique"]
[WhiteFideId "6402801"]
[BlackFideId "5132355"]
[WhiteElo "2176"]
[BlackElo "1961"]
[Result "1-0"]
[Round "11"]
[TimeControl "180+1"]
[Date "2023.08.15"]
[WhiteClock "0:00:52"]
[BlackClock "0:00:27"]
[Board "153"]

1. d4 {[%clk 0:03:00]}  Nf6 {[%clk 0:03:00]} 2. e3 {[%clk 0:03:00]}  g6 {[%clk 0:02:57]} 3. Nf3 {[%clk 0:02:59]}  Bg7 {[%clk 0:02:56]} 4. Be2 {[%clk 0:02:57]}  d5 {[%clk 0:02:57]} 5. O-O {[%clk 0:02:53]}  O-O {[%clk 0:02:56]} 6. b4 {[%clk 0:02:52]}  Qd6 {[%clk 0:02:44]} 7. a3 {[%clk 0:02:45]}  Bf5 {[%clk 0:02:34]} 8. Nbd2 {[%clk 0:02:43]}  a5 {[%clk 0:02:30]} 9. b5 {[%clk 0:02:41]}  c5 {[%clk 0:02:30]} 10. bxc6 {[%clk 0:02:41]}  Nxc6 {[%clk 0:02:29]} 11. c4 {[%clk 0:02:40]}  Ne4 {[%clk 0:02:20]} 12. cxd5 {[%clk 0:02:34]}  Qxd5 {[%clk 0:02:20]} 13. Bc4 {[%clk 0:02:30]}  Qd7 {[%clk 0:02:18]} 14. Nh4 {[%clk 0:02:08]}  Nxd2 {[%clk 0:01:58]} 15. Bxd2 {[%clk 0:01:48]}  Rfc8 {[%clk 0:01:48]} 16. Nxf5 {[%clk 0:01:48]}  Qxf5 {[%clk 0:01:48]} 17. Be2 {[%clk 0:01:46]}  a4 {[%clk 0:01:38]} 18. Rb1 {[%clk 0:01:42]}  Na5 {[%clk 0:01:37]} 19. Bxa5 {[%clk 0:01:39]}  Rxa5 {[%clk 0:01:33]} 20. Rxb7 {[%clk 0:01:37]}  e5 {[%clk 0:01:21]} 21. Bg4 {[%clk 0:01:08]}  Rc1 {[%clk 0:01:03]} 22. Qxc1 {[%clk 0:00:53]}  Qxg4 {[%clk 0:00:27]} 23. Qc7 {[%clk 0:00:52]} 1-0


[Site "https://www.chess.com"]